Workbook

Sheet №3
G2: Приложение №3
B3: к решению Совета депутатов Борковского сельского поселения | D3: к решению Совета депутатов Борковского сельского
B4: депутатов Борковского сельского поселения от ___12.2015 №__ | C4: поселения " О бюджете Борковского сельского поселения на 2016 год"
B5: "О бюджете Борковского сельского поселения на 2016 год"
D6: от 24.12.2015 №18
A10: Распределение бюджетных ассигнований на 2016 год
A11: по разделам и подразделам, целевым статьям и видам расходов
A12: классификации расходов бюджета
A14: Наименование | C14: Рз | D14: ПР | E14: ЦСР | F14: ВР | G14: Сумма | H14: 2009 год | I14: 2010 год
A15: Администрация Борковского сельского поселения
A16: Общегосударственные вопросы | C16: 01 | G16: =G19+G31+G64+G73+G57+G76 -> 4093.75 | H16: =H19+#REF!+#REF!+H31+#REF!++#REF!+#REF!+#REF!+#REF! ->  | I16: =I19+#REF!+#REF!+I31+#REF!++#REF!+#REF!+#REF!+#REF! -> 
A17: Функционирование высшего должностного лица
A18: субъекта Российской Федерации и
A19: муниципального образования | C19: =C$16 -> 01 | D19: 02 | G19: =G20 -> 621.9 | H19: =#REF! ->  | I19: =#REF! -> 
A20: Глава муниципального образования | C20: =C$16 -> 01 | D20: =D$19 -> 02 | E20: 20 1 00 00000 | G20: =G22 -> 621.9 | H20: =#REF! ->  | I20: =#REF! -> 
A21: Расходы на обеспечение функций органов
A22: местного самоуправления | C22: 01 | D22: 02 | E22: 20 1 00 01000 | G22: =G23+G27+G26 -> 621.9
A23: Фонд оплаты труда государственных (муниципальных) органов | C23: =C$16 -> 01 | D23: =D$19 -> 02 | E23: 20 1 00 01000 | F23: 121 | G23: 451
A24: Взносы по обязательном у социальному страхованию на выплаты
A25: денежного содержания и иные выплаты работникам
A26: государственных (муниципальных) органов | C26: 01 | D26: 02 | E26: 20 1 00 01000 | F26: 129 | G26: 130.8
A27: Иные выплаты персоналу, за исключением фонда оплаты труда | C27: =C$16 -> 01 | D27: =D$19 -> 02 | E27: 20 1 00 01000 | F27: 122 | G27: 40.1
A28: Функционирование Правительства Российской
A29: Федерации, высших исполнительных органов
A30: государственной власти субъектов Российской
A31: Федерации, местных администраций | C31: =C$16 -> 01 | D31: 04 | G31: =G35 -> 3098.1 | H31: =H35 ->  | I31: =I35 -> 
A32: Руководство и управление в сфере установленных
A33: функций органов государственной власти субъектов
A34: Российской Федерации и органов местного
A35: самоуправления | C35: =C$16 -> 01 | D35: =D31 -> 04 | E35: 20 2 00 01000 | G35: =G37 -> 3098.1 | H35: =#REF!+H37 ->  | I35: =#REF!+I37 -> 
A36: Расходы на обеспечение функций органов
A37: местного самоуправления | C37: 01 | D37: =D31 -> 04 | E37: 20 2 00 01000 | G37: =G46+G44+G42+G38+G41+G50+G51+G52 -> 3098.1 | H37: =H46 -> 109153 | I37: =I46 -> 111534
A38: Фонд оплаты труда государственных (муниципальных) органов | C38: 01 | D38: 04 | E38: 20 2 00 01000 | F38: 121 | G38: 1787.8
A39: Взносы по обязательном у социальному страхованию на выплаты
A40: денежного содержания и иные выплаты работникам
A41: государственных (муниципальных) органов | C41: 01 | D41: 04 | E41: 20 2 00 01000 | F41: 129 | G41: 520.8
A42: Иные выплаты персоналу, за исключением фонда оплаты труда | C42: 01 | D42: 04 | E42: 20 2 00 01000 | F42: 122 | G42: 160.4
A43: Закупка товаров, работ, услуг в области
A44: информационных технологий | C44: 01 | D44: 04 | E44: 20 2 00 01000 | F44: 242 | G44: 195
A45: Прочая закупка товаров,работ и услуг для муниципальных | D45: =D34 -> 0
A46: нужд | C46: 01 | D46: =D31 -> 04 | E46: 20 2 00 01000 | F46: 244 | G46: 385 | H46: =41535+18149+427+17648+30000+534+860 -> 109153 | I46: =42995+18483+456+19031+30000+569 -> 111534
A47: Областной резервный фонд на ликвидацию угрозы и
A48: последствий чрезвычайных ситуаций | C48: =C$16 -> 01 | D48: =#REF! ->  | E48: =#REF! ->  | G48: =G49 -> 0 | H48: =H49 -> 0 | I48: =I49 -> 0
A49: Прочие расходы | C49: =C$16 -> 01 | D49: =#REF! ->  | E49: =#REF! ->  | F49: 013 | G49: =3317-3317 -> 0 | H49: =3543-3543 -> 0 | I49: =3773-3773 -> 0
A50: Уплата налога на имущество организаций | C50: =C$16 -> 01 | D50: 04 | E50: 20 2 00 01000 | F50: 851 | G50: 1.5
A51: Уплата прочих налогов, сборов и иных обязательных платежей | C51: 01 | D51: 04 | E51: 20 2 00 01000 | F51: 852 | G51: 1.8
A52: Уплата иных платежей | C52: 01 | D52: 04 | E52: 20 2 00 01000 | F52: 853 | G52: 45.8
A53: Субвенция на возмещению затрат по содержанию штатных
A54: единиц, осуществляющих переданные отдельные государствен-
A55: ные полномочия области по организации деятельности по сбору
A56: ( в том числе раздельному сбору) и транспортированию твердых
A57: коммунальных отходов городских и сельских поселений | C57: 01 | D57: 04 | E57: 20 2 00 70280 | G57: =+G58+G61+G63 -> 151.7
A58: Фонд оплаты труда государственных (муниципальных) органов | C58: 01 | D58: 04 | E58: 20 2 00 70280 | F58: 121 | G58: 111.6
A59: Взносы по обязательном у социальному страхованию на выплаты
A60: денежного содержания и иные выплаты работникам
A61: государственных (муниципальных) органов | C61: 01 | D61: 04 | E61: 20 2 00 70280 | F61: 129 | G61: 32.6
A62: Прочая закупка товаров,работ и услуг для муниципальных
A63: нужд | C63: 01 | D63: 04 | E63: 20 2 00 70280 | F63: 244 | G63: 7.5
A64: Обеспечение деятельности финансовых, налоговых | C64: 01 | D64: 06 | G64: =G71 -> 217.05
A65: и таможенных органов и органов финансового (финансово-
A66: бюджетного) надзора
A67: Иные межбюджетные трансферты из бюджетов поселений
A68: бюджету муниципального района на возмещение затрат по
A69: содержанию штатных единиц, осуществляющих переданные
A70: полномочия поселения по внешнему муниципальному
A71: финансовому контролю | C71: 01 | D71: 06 | E71: 20 4 00 93020 | G71: =+G72 -> 217.05
A72: Иные межбюджетные трансферты | C72: 01 | D72: 06 | E72: 20 4 00 93020 | F72: 540 | G72: 217.05
A73: Резервные фонды | C73: 01 | D73: 11 | G73: =G74 -> 1
A74: Резервные фонды местных администраций | C74: 01 | D74: 11 | E74: 20 5 00 25030 | G74: =G75 -> 1
A75: Резервные средства | C75: 01 | D75: 11 | E75: 20 5 00 25030 | F75: 870 | G75: 1
A76: Другие общегосударственные вопросы | C76: 01 | D76: 13 | G76: 4
A77: Содержание и обслуживание казны муниципального
A78: образования | C78: 01 | D78: 13 | E78: 20 5 00 25150 | G78: 4
A79: Прочая закупка товаров,работ и услуг для муниципальных
A80: нужд | C80: 01 | D80: 13 | E80: 20 5 00 25150 | F80: 244 | G80: 4
A81: Национальная оборона | C81: 02 | G81: =G82 -> 178
A82: Мобилизационная и вневойсковая подготовка | C82: 02 | D82: 03 | G82: =+G84 -> 178
A83: Осуществление первичного воинского учета на
A84: территории, где отсутствуют воинские комиссариаты | C84: 02 | D84: 03 | E84: 20 5 00 51180 | G84: =G85+G90+G88 -> 178
A85: Фонд оплаты труда государственных (муниципальных) органов | C85: 02 | D85: 03 | E85: 20 5 00 51180 | F85: 121 | G85: 129.7
A86: Взносы по обязательном у социальному страхованию на выплаты
A87: денежного содержания и иные выплаты работникам
A88: государственных (муниципальных) органов | C88: 02 | D88: 03 | E88: 20 5 00 51180 | F88: 129 | G88: 39.2
A89: Прочая закупка товаров,работ и услуг для муниципальных
A90: нужд | C90: 02 | D90: 03 | E90: 20 5 00 51180 | F90: 244 | G90: 9.1
A91: Национальная безопасность и
A92: правоохранительная деятельность | C92: 03 | G92: =G93 -> 69 | H92: =#REF!+#REF!+H93+#REF! ->  | I92: =#REF!+#REF!+I93+#REF! -> 
A93: Обеспечение пожарной безопасности | C93: =C$92 -> 03 | D93: 10 | G93: =+G96 -> 69 | H93: =#REF!+#REF!+#REF! ->  | I93: =#REF!+#REF!+#REF! -> 
A94: Пожарная безопасность в рамках муниципальной
A95: программы "Устойчивое развитие территории Борковского | H95: =H98 -> 238496 | I95: =I98 -> 254189
A96: сельского поселения на 2014-2016гг." | C96: =C$92 -> 03 | D96: =D93 -> 10 | E96: 01 0 00 25110 | G96: =G98 -> 69
A97: Прочая закупка товаров,работ и услуг для
A98: муниципальных нужд | C98: =C$92 -> 03 | D98: =D93 -> 10 | E98: 01 0 00 25110 | F98: 244 | G98: 69 | H98: =24567+213947-18 -> 238496 | I98: =27116+227094-21 -> 254189
A99: Субсидирование процентных ставок по
A100: привлеченным кредитам в российских кредитных
A101: организациях на развитие животноводства | C101: =#REF! ->  | D101: =#REF! ->  | E101: =#REF! ->  | F101: 356
A102: Субсидирование процентных ставок по
A103: привлеченным кредитам в российских кредитных
A104: организациях на развитие малых форм
A105: хозяйствования в агропромышленном комплексе | C105: =#REF! ->  | D105: =#REF! ->  | E105: =#REF! ->  | F105: 357
A106: Субсидирование части затрат на приобретение
A107: дизельного топлива, использованного на
A108: проведение сезонных сельскохозяйственных работ | C108: =#REF! ->  | D108: =#REF! ->  | E108: =#REF! ->  | F108: 355
A109: Субсидирование процентных ставок по кредитам,
A110: полученным в российских кредитных организациях
A111: на развитие животноводства и промышленного
A112: рыбоводства | C112: =#REF! ->  | D112: =#REF! ->  | E112: =#REF! ->  | F112: 356
A113: Субсидирование процентных ставок по кредитам,
A114: полученным в российских кредитных организациях,
A115: и займам, полученным в сельскохозяйственных
A116: кредитных потребительских кооперативах,
A117: на развитие малых форм хозяйствования в
A118: агропромышленном комплексе | C118: =#REF! ->  | D118: =#REF! ->  | E118: =#REF! ->  | F118: 357
A119: Субсидии на поддержку племенного
A120: животноводства | C120: =#REF! ->  | D120: =#REF! ->  | E120: =#REF! ->  | F120: 627
A121: Возмещение части затрат на уплату процентов
A122: по кредитам, полученным на срок до пяти лет
A123: в российских кредитных организациях
A124: на приобретение племенного скота, племенного
A125: материала рыб, техники и оборудования
A126: для животноводческих комплексов и организаций,
A127: осуществляющих промышленное рыбоводство | C127: =#REF! ->  | D127: =#REF! ->  | E127: =#REF! ->  | F127: 628
A128: Национальная экономика | C128: 04 | G128: =+G130 -> 1981.6
A130: Дорожное хозяйство(дорожные фонды) | C130: 04 | D130: 09 | G130: =+G133 -> 1981.6
A131: Дорожное хозяйство в рамках муниципальной программы
A132: "Устойчивое развитие территории Борковского сельского
A133: поселения на 2014-2016гг." | C133: 04 | D133: 09 | E133: 01 0 00 00000 | G133: =+G135+G139+G143 -> 1981.6
A134: Капитальный ремонт и ремонт автомобильных дорог общего пользования
A135: пользования местного значения в границах населенных пунктов | C135: 04 | D135: 09 | E135: 01 0 00 S5170 | G135: =G137 -> 658.6
A136: Прочая закупка товаров,работ и услуг для
A137: муниципальных нужд | C137: 04 | D137: 09 | E137: 01 0 00 S5170 | F137: 244 | G137: 658.6
A138: Содержание автомобильных дорог общего пользования местного значения населеных пунктов
A139: значения в границах населенных пунктов | C139: 04 | D139: 09 | E139: 01 0 00 25160 | G139: =+G141 -> 200
A140: Прочая закупка товаров,работ и услуг для
A141: муниципальных нужд | C141: 04 | D141: 09 | E141: 01 0 00 25160 | F141: 244 | G141: 200
A142: Осуществление дорожной деятельности в отношении
A143: автомобильных дорог общего пользования местного значения | C143: 04 | D143: 09 | E143: 01 0 00 71520 | G143: =G145 -> 1123
A144: Прочая закупка товаров,работ и услуг для
A145: муниципальных нужд | C145: 04 | D145: 09 | E145: 01 0 00 71520 | F145: 244 | G145: 1123
A146: Жилищно-коммунальное хозяйство | C146: 05 | G146: =G147+G152 -> 3015.5 | H146: =#REF!+H152+#REF! ->  | I146: =#REF!+I152+#REF! -> 
A147: Коммунальное хозяйство | C147: 05 | D147: 02 | G147: =+G150 -> 300
A149: Компенсация выпадающих доходов организациям,
A150: предоставляющим населению услуги общественных бань | C150: 05 | D150: 02 | E150: 01 0 00 62200 | G150: =G151 -> 300
A151: Субсидии юридическим лицам | C151: 05 | D151: 02 | E151: 01 0 00 62200 | F151: 810 | G151: 300
A152: Благоустройство | C152: =C$146 -> 05 | D152: 03 | G152: =+G154+G157+G160+G164 -> 2715.5 | H152: =#REF!+#REF!+#REF!+#REF!+H153 ->  | I152: =#REF!+#REF!+#REF!+#REF!+I153 -> 
A153: Организация уличного освещения с использованием | H153: =#REF! ->  | I153: =#REF! -> 
A154: новых технологий | C154: =C$146 -> 05 | D154: =D152 -> 03 | E154: 01 0 00 25190 | G154: =G156 -> 1989
A155: Прочая закупка товаров,работ и услуг для муниципальных
A156: нужд | C156: =C$146 -> 05 | D156: =D154 -> 03 | E156: 01 0 00 25190 | F156: 244 | G156: 1989
A157: Озеленение территории поселения | C157: 05 | D157: 03 | E157: 01 0 00 25210 | G157: =G159 -> 140
A158: Прочая закупка товаров,работ и услуг для муниципальных
A159: нужд | C159: 05 | D159: 03 | E159: 01 0 00 25210 | F159: 244 | G159: 140
A160: Организация ритуальных услуг и содержание мест захоронения | C160: 05 | D160: 03 | E160: 01 0 00 25220 | G160: =G162 -> 150
A161: Прочая закупка товаров,работ и услуг для муниципальных
A162: муниципальных нужд | C162: 05 | D162: 03 | E162: 01 0 00 25220 | F162: 244 | G162: 150
A163: Прочие мероприятия по благоустройству
A164: городских округов и поселений | C164: 05 | D164: 03 | E164: 01 0 00 25230 | G164: 436.5
A165: Прочая закупка товаров, работ и услуг для муниципальных
A166: нужд | C166: 05 | D166: 03 | E166: 01 0 00 25230 | F166: 244 | G166: 436.5
A167: Образование | C167: 07 | G167: =G168+G173 -> 15.4 | H167: =#REF!+#REF!+#REF!+#REF!+#REF!+H168 ->  | I167: =#REF!+#REF!+#REF!+#REF!+#REF!+I168 -> 
A168: Молодежная политика и оздоровление детей | C168: =C$167 -> 07 | D168: 07 | G168: =G169 -> 4 | H168: =H169+#REF!+#REF! ->  | I168: =I169+#REF!+#REF! -> 
A169: Организационно-воспитательная работа с молодежью | C169: =C$167 -> 07 | D169: =D$168 -> 07 | E169: 20 5 00 00000 | G169: =G170 -> 4 | H169: =H170 ->  | I169: =I170 -> 
A170: Реализация мероприятий для детей и молодежи | C170: =C$167 -> 07 | D170: =D$168 -> 07 | E170: 20 5 00 25090 | G170: =G172 -> 4 | H170: =#REF!+H171 ->  | I170: =#REF!+I171 -> 
A171: Прочая закупка товаров,работ и услуг для муниципальных
A172: нужд | C172: =C$167 -> 07 | D172: =D$168 -> 07 | E172: 20 5 00 25090 | F172: 244 | G172: 4
A173: Другие вопросы в области образования | C173: 07 | D173: 09 | G173: =G178+G185 -> 11.4
A174: Мероприятия на организацию профессионального
A175: образования и дополнительного профессионального
A176: образования выборных должностных лиц,
A177: муниципальных служащих и служащих городских и
A178: сельских поселений | C178: 07 | D178: 09 | E178: 20 5 00 S5370 | G178: 2
A179: Прочая закупка товаров,работ и услуг для муниципальных
A180: нужд | C180: 07 | D180: 09 | E180: 20 5 00 S5370 | F180: 244 | G180: 2
A181: Субсидии бюджетам муниципальных районов и городского
A182: округа на организацию профессионального образования
A183: и дополнительного профессионального образования
A184: выборных должностных лиц, служащих и муниципальных
A185: служащих Новгородской области | C185: 07 | D185: 09 | E185: 20 5 00 72280 | G185: 9.4
A186: Прочая закупка товаров,работ и услуг для муниципальных
A187: нужд | C187: 07 | D187: 09 | E187: 20 5 00 72280 | F187: 244 | G187: 9.4
A189: Культура, кинематография, средства
A190: массовой информации | C190: 08 | G190: =G191 -> 2336.4 | H190: =#REF!+#REF!+#REF!+#REF! ->  | I190: =#REF!+#REF!+#REF!+#REF! -> 
A191: Культура | C191: =C$190 -> 08 | D191: 01 | G191: =G197+G193 -> 2336.4
A192: Дворцы и дома культуры | C192: 08 | D192: 01 | E192: 20 5 00 14000 | G192: 2334.4
A193: Обеспечение деятельности подведомственных учреждений | C193: 08 | D193: 01 | E193: 20 5 00 14010 | G193: =G196 -> 2334.4
A194: Субсидии автономным учреждениям на финансовое
A195: обеспечение муниципального задания на оказание
A196: муниципальных услуг (выполнение работ) | C196: 08 | D196: 01 | E196: 20 5 00 14010 | F196: 621 | G196: 2334.4
A197: Мероприятия в области культуры | C197: 08 | D197: 01 | E197: 20 5 00 25050 | G197: =G199 -> 2
A198: Прочая закупка товаров,работ и услуг для муниципальных | H198: =H199 -> 14118 | I198: =I199 -> 14502
A199: нужд | C199: =C$190 -> 08 | D199: =D191 -> 01 | E199: 20 5 00 25050 | F199: 244 | G199: 2 | H199: =11260+2858 -> 14118 | I199: =11613+2889 -> 14502
A200: Социальная политика | C200: 10 | G200: =G201 -> 252.5
A201: Пенсионное обеспечение | C201: 10 | D201: 01 | G201: =+G202 -> 252.5
A202: Публичные обязательства | C202: 10 | D202: 01 | E202: 20 5 00 80000 | G202: =G204 -> 252.5
A203: Доплаты к пенсиям муниципальных служащих, служащих,
A204: замещавших муниципальные должности | C204: 10 | D204: 01 | E204: 20 5 00 82100 | G204: 252.5
A205: Иные пенсии, социальные доплаты к пенсиям | C205: 10 | D205: 01 | E205: 20 5 00 82100 | F205: 312 | G205: 252.5
A206: Физическая культура и спорт | C206: 11 | G206: =G207 -> 18 | H206: =#REF!+#REF!+#REF!+#REF!+#REF!+H207+#REF! ->  | I206: =#REF!+#REF!+#REF!+#REF!+#REF!+I207+#REF! -> 
A207: Физическая культура | C207: 11 | D207: 01 | G207: =+G211 -> 18 | H207: =H208+#REF!+#REF! ->  | I207: =I208+#REF!+#REF! -> 
A208: Непрограммные инвестиции в основные фонды | C208: =C$206 -> 11 | D208: =D207 -> 01 | E208: 102 00 00 | G208: =G210 -> 0 | H208: =H210 -> 0 | I208: =I210 -> 0
... 6 more rows

Sheet Лист1
